[Event "Late-Titled-Tuesday-Blitz-September-12-2023"]
[Site "Chess.com"]
[Date "2023.09.12"]
[Round "4"]
[White "Valio_M1948"]
[Black "artin10862"]
[Result "0-1"]
[WhiteElo "2555"]
[BlackElo "2952"]
[TimeControl "180+1"]
[EndTime "14:37:48 PDT"]
[Termination "artin10862 won by resignation"]

1. d4 {[%clk 0:03:00.9]} 1... Nf6 {[%clk 0:02:59.6]} 2. Bg5 {[%clk 0:03:00.6]}
2... g6 {[%clk 0:02:58.2]} 3. Bxf6 {[%clk 0:03:00.6]} 3... exf6 {[%clk
0:02:58.7]} 4. c4 {[%clk 0:03:01.5]} 4... Bg7 {[%clk 0:02:58.6]} 5. Nc3 {[%clk
0:03:02.2]} 5... O-O {[%clk 0:02:59.2]} 6. e3 {[%clk 0:03:03]} 6... d6 {[%clk
0:02:57.8]} 7. g3 {[%clk 0:03:03.6]} 7... c6 {[%clk 0:02:58.2]} 8. Bg2 {[%clk
0:03:04.1]} 8... f5 {[%clk 0:02:58.9]} 9. Nge2 {[%clk 0:03:04.7]} 9... Nd7
{[%clk 0:02:59.5]} 10. O-O {[%clk 0:03:05.4]} 10... Nf6 {[%clk 0:03:00.2]} 11.
Qd3 {[%clk 0:03:06.1]} 11... Re8 {[%clk 0:03:00.8]} 12. b4 {[%clk 0:03:06.6]}
12... Qe7 {[%clk 0:03:01.1]} 13. a4 {[%clk 0:03:06.5]} 13... Ne4 {[%clk
0:03:01.4]} 14. b5 {[%clk 0:03:02.2]} 14... Bd7 {[%clk 0:03:01.3]} 15. Rfb1
{[%clk 0:03:01]} 15... Rab8 {[%clk 0:02:58.9]} 16. bxc6 {[%clk 0:03:01]} 16...
Bxc6 {[%clk 0:02:53.7]} 17. Nd5 {[%clk 0:02:31.5]} 17... Qd8 {[%clk 0:02:52]}
18. a5 {[%clk 0:02:26.6]} 18... h5 {[%clk 0:02:46.7]} 19. Nb4 {[%clk 0:02:08.1]}
19... Bd7 {[%clk 0:02:44.9]} 20. Nc3 {[%clk 0:02:00.7]} 20... Nxc3 {[%clk
0:02:31.3]} 21. Qxc3 {[%clk 0:02:01.6]} 21... h4 {[%clk 0:02:31.6]} 22. a6
{[%clk 0:02:01.9]} 22... b6 {[%clk 0:02:17]} 23. Bc6 {[%clk 0:01:55.1]} 23...
Rc8 {[%clk 0:02:12.5]} 24. Bxd7 {[%clk 0:01:52.2]} 24... Qxd7 {[%clk 0:02:13.4]}
25. Qd3 {[%clk 0:01:48.3]} 25... Re4 {[%clk 0:02:05.9]} 26. Nd5 {[%clk
0:01:46.2]} 26... Rce8 {[%clk 0:01:55.6]} 27. Ra2 {[%clk 0:01:33.1]} 27... Qc8
{[%clk 0:01:42.5]} 28. Rba1 {[%clk 0:01:26.1]} 28... h3 {[%clk 0:01:11.1]} 29.
Ra3 {[%clk 0:01:22.7]} 29... Bxd4 {[%clk 0:01:09.3]} 30. Qf1 {[%clk 0:00:46.5]}
30... Bg7 {[%clk 0:00:54.3]} 31. Rc1 {[%clk 0:00:44.7]} 31... Qc5 {[%clk
0:00:51.4]} 32. Rb3 {[%clk 0:00:41.4]} 32... Rc8 {[%clk 0:00:33.2]} 33. Qxh3
{[%clk 0:00:34.3]} 33... Kf8 {[%clk 0:00:33.2]} 34. Rb4 {[%clk 0:00:31.1]} 34...
Qxd5 {[%clk 0:00:31.7]} 35. cxd5 {[%clk 0:00:31]} 35... Rxc1+ {[%clk 0:00:31.4]}
36. Kg2 {[%clk 0:00:30]} 36... Rxb4 {[%clk 0:00:32]} 37. Qh7 {[%clk 0:00:20.9]}
37... b5 {[%clk 0:00:25]} 38. h4 {[%clk 0:00:21.3]} 38... Rg4 {[%clk 0:00:21.2]}
39. h5 {[%clk 0:00:20.4]} 39... b4 {[%clk 0:00:20]} 40. f3 {[%clk 0:00:14.5]}
40... Rg5 {[%clk 0:00:19.5]} 41. hxg6 {[%clk 0:00:10.9]} 41... Rc2+ {[%clk
0:00:14.3]} 42. Kf1 {[%clk 0:00:07.1]} 42... Rxg6 {[%clk 0:00:14]} 43. Qh4
{[%clk 0:00:06.8]} 43... Rc8 {[%clk 0:00:06]} 44. Qxb4 {[%clk 0:00:07.1]} 44...
Re8 {[%clk 0:00:06.4]} 45. Qxd6+ {[%clk 0:00:07.4]} 45... Rxd6 {[%clk
0:00:06.6]} 46. Kf2 {[%clk 0:00:08]} 46... Rxa6 {[%clk 0:00:06.7]} 47. f4 {[%clk
0:00:08.5]} 47... Ra2+ {[%clk 0:00:07.6]} 0-1

[Event "Late-Titled-Tuesday-Blitz-September-12-2023"]
[Site "Chess.com"]
[Date "2023.09.12"]
[Round "4"]
[White "subham777"]
[Black "platy3"]
[Result "0-1"]
[WhiteElo "2545"]
[BlackElo "2887"]
[TimeControl "180+1"]
[EndTime "14:37:52 PDT"]
[Termination "platy3 won by resignation"]

1. e4 {[%clk 0:03:00.9]} 1... c5 {[%clk 0:02:59]} 2. Nf3 {[%clk 0:03:00.3]} 2...
d6 {[%clk 0:02:59.6]} 3. d4 {[%clk 0:03:00.2]} 3... cxd4 {[%clk 0:03:00.5]} 4.
Qxd4 {[%clk 0:03:00.8]} 4... Nf6 {[%clk 0:03:01.2]} 5. e5 {[%clk 0:03:01.1]}
5... Nc6 {[%clk 0:02:55.1]} 6. Bb5 {[%clk 0:02:58.2]} 6... dxe5 {[%clk
0:02:44.9]} 7. Qxd8+ {[%clk 0:02:57.3]} 7... Kxd8 {[%clk 0:02:45.8]} 8. Bxc6
{[%clk 0:02:58.2]} 8... bxc6 {[%clk 0:02:46.6]} 9. Nxe5 {[%clk 0:02:59.1]} 9...
Ke8 {[%clk 0:02:47.4]} 10. Nc3 {[%clk 0:02:58.6]} 10... Nd7 {[%clk 0:02:44]} 11.
Nxd7 {[%clk 0:02:49.4]} 11... Bxd7 {[%clk 0:02:44.2]} 12. Be3 {[%clk 0:02:49.9]}
12... e5 {[%clk 0:02:38.2]} 13. O-O-O {[%clk 0:02:47.7]} 13... Be7 {[%clk
0:02:19.1]} 14. Rhe1 {[%clk 0:02:44.2]} 14... Be6 {[%clk 0:02:17]} 15. f4 {[%clk
0:02:38.3]} 15... exf4 {[%clk 0:02:15.2]} 16. Bxf4 {[%clk 0:02:37.2]} 16... Rd8
{[%clk 0:02:06.4]} 17. Ne4 {[%clk 0:02:00.8]} 17... h6 {[%clk 0:01:41.8]} 18. a3
{[%clk 0:01:46.7]} 18... Rxd1+ {[%clk 0:01:38]} 19. Rxd1 {[%clk 0:01:41.3]}
19... Bd5 {[%clk 0:01:38.1]} 20. Nd6+ {[%clk 0:01:21.4]} 20... Bxd6 {[%clk
0:01:31.2]} 21. Bxd6 {[%clk 0:01:22.3]} 21... Bxg2 {[%clk 0:01:31.8]} 22. Rg1
{[%clk 0:01:16.7]} 22... Be4 {[%clk 0:01:31.9]} 23. Rxg7 {[%clk 0:01:15.5]}
23... Bg6 {[%clk 0:01:31.8]} 24. Be5 {[%clk 0:01:09.2]} 24... Rf8 {[%clk
0:01:30.8]} 25. Bd4 {[%clk 0:01:04.7]} 25... Kd7 {[%clk 0:01:15.2]} 26. Bxa7
{[%clk 0:00:59.1]} 26... Ke6 {[%clk 0:01:15.5]} 27. Bc5 {[%clk 0:00:49.3]} 27...
Rd8 {[%clk 0:01:13.9]} 28. Bb4 {[%clk 0:00:39.4]} 28... c5 {[%clk 0:01:03.1]}
29. Bc3 {[%clk 0:00:36.4]} 29... h5 {[%clk 0:00:57.6]} 30. a4 {[%clk 0:00:28.3]}
30... h4 {[%clk 0:00:55.3]} 31. a5 {[%clk 0:00:24.1]} 31... h3 {[%clk
0:00:55.6]} 32. b3 {[%clk 0:00:18.8]} 32... Kf5 {[%clk 0:00:55.2]} 33. Kb2
{[%clk 0:00:16.1]} 33... Ke4 {[%clk 0:00:53.6]} 34. b4 {[%clk 0:00:14.9]} 34...
cxb4 {[%clk 0:00:50.2]} 35. Bxb4 {[%clk 0:00:15.8]} 35... Kf3 {[%clk 0:00:50.9]}
36. Be7 {[%clk 0:00:11.3]} 36... Ra8 {[%clk 0:00:46.3]} 37. Bb4 {[%clk
0:00:08.5]} 37... Kg2 {[%clk 0:00:45.5]} 38. Bd6 {[%clk 0:00:08.5]} 38... Rxa5
{[%clk 0:00:36.3]} 39. c4 {[%clk 0:00:08.5]} 39... Ra4 {[%clk 0:00:19.6]} 40.
Kb3 {[%clk 0:00:06.9]} 40... Ra1 {[%clk 0:00:19.5]} 41. c5 {[%clk 0:00:06.7]}
41... Rc1 {[%clk 0:00:19.8]} 42. Kb2 {[%clk 0:00:06.4]} 42... Rc4 {[%clk
0:00:18.5]} 43. Rg8 {[%clk 0:00:06.3]} 43... Kf3 {[%clk 0:00:12.8]} 44. Kb3
{[%clk 0:00:06.4]} 44... Rc1 {[%clk 0:00:12.6]} 45. Kb2 {[%clk 0:00:06.6]} 45...
Rc2+ {[%clk 0:00:13]} 46. Kb3 {[%clk 0:00:06.7]} 46... Rd2 {[%clk 0:00:11.7]}
47. Kc3 {[%clk 0:00:06.2]} 47... Rd5 {[%clk 0:00:10.5]} 48. Kc4 {[%clk
0:00:05.4]} 48... Rd1 {[%clk 0:00:11.2]} 49. c6 {[%clk 0:00:04.7]} 49... Rxd6
{[%clk 0:00:10.5]} 50. Kc5 {[%clk 0:00:04.8]} 50... Rd1 {[%clk 0:00:08.4]} 51.
c7 {[%clk 0:00:04.8]} 51... Rc1+ {[%clk 0:00:08.9]} 52. Kd6 {[%clk 0:00:04.6]}
52... Bf5 {[%clk 0:00:09.4]} 53. Rh8 {[%clk 0:00:03.3]} 53... Kg2 {[%clk
0:00:09.2]} 54. Rh5 {[%clk 0:00:02.9]} 54... Be6 {[%clk 0:00:09.6]} 55. Rc5
{[%clk 0:00:02.1]} 55... Rxc5 {[%clk 0:00:09.6]} 0-1

[Event "Late-Titled-Tuesday-Blitz-September-12-2023"]
[Site "Chess.com"]
[Date "2023.09.12"]
[Round "4"]
[White "Perecke"]
[Black "AlexOstrovskiy"]
[Result "1-0"]
[WhiteElo "2510"]
[BlackElo "2632"]
[TimeControl "180+1"]
[EndTime "14:37:55 PDT"]
[Termination "Perecke won by resignation"]

1. e4 {[%clk 0:03:00.9]} 1... c5 {[%clk 0:02:59.6]} 2. Nf3 {[%clk 0:02:59.1]}
2... d6 {[%clk 0:02:59.6]} 3. d4 {[%clk 0:02:59.2]} 3... cxd4 {[%clk 0:03:00.5]}
4. Nxd4 {[%clk 0:03:00]} 4... Nf6 {[%clk 0:02:58.4]} 5. Nc3 {[%clk 0:03:00]}
5... g6 {[%clk 0:02:57.9]} 6. Be3 {[%clk 0:02:59.5]} 6... Nc6 {[%clk 0:02:56.2]}
7. f3 {[%clk 0:02:59.5]} 7... h5 {[%clk 0:02:55.3]} 8. Bc4 {[%clk 0:02:57.4]}
8... Bg7 {[%clk 0:02:50.2]} 9. Qd2 {[%clk 0:02:56.2]} 9... Bd7 {[%clk
0:02:50.5]} 10. O-O-O {[%clk 0:02:56]} 10... Na5 {[%clk 0:02:48.6]} 11. Bb3
{[%clk 0:02:55.3]} 11... Rb8 {[%clk 0:02:44.9]} 12. Kb1 {[%clk 0:02:50.2]} 12...
b5 {[%clk 0:02:44.3]} 13. Nd5 {[%clk 0:02:47.5]} 13... Nc4 {[%clk 0:02:41.6]}
14. Qe2 {[%clk 0:02:38.2]} 14... Nxd5 {[%clk 0:02:32.3]} 15. exd5 {[%clk
0:02:39.1]} 15... Nxe3 {[%clk 0:02:30.1]} 16. Qxe3 {[%clk 0:02:39.2]} 16... a5
{[%clk 0:02:19.9]} 17. Nc6 {[%clk 0:02:27.4]} 17... Bxc6 {[%clk 0:02:20]} 18.
dxc6 {[%clk 0:02:28.3]} 18... a4 {[%clk 0:02:12.7]} 19. Bd5 {[%clk 0:02:25.4]}
19... O-O {[%clk 0:02:12.8]} 20. Rhe1 {[%clk 0:02:25.2]} 20... e6 {[%clk
0:02:09.3]} 21. Bxe6 {[%clk 0:02:25.4]} 21... fxe6 {[%clk 0:02:07.5]} 22. Qxe6+
{[%clk 0:02:25.3]} 22... Kh7 {[%clk 0:02:02.7]} 23. Rxd6 {[%clk 0:02:24.3]}
23... Qg5 {[%clk 0:01:52.1]} 24. c7 {[%clk 0:02:09.1]} 24... Rbc8 {[%clk
0:01:37.2]} 25. Rd7 {[%clk 0:02:05.8]} 25... Qxg2 {[%clk 0:00:36.8]} 26. Qe7
{[%clk 0:01:25.8]} 26... Rg8 {[%clk 0:00:33.6]} 27. Rd8 {[%clk 0:01:25.9]} 27...
Qxf3 {[%clk 0:00:18.4]} 28. Rxg8 {[%clk 0:00:50.1]} 28... Rxg8 {[%clk
0:00:19.3]} 29. Qd8 {[%clk 0:00:50.5]} 29... Qf6 {[%clk 0:00:16.6]} 30. Qxg8+
{[%clk 0:00:50.3]} 30... Kxg8 {[%clk 0:00:14]} 31. c8=Q+ {[%clk 0:00:50.4]}
31... Kh7 {[%clk 0:00:13.8]} 32. Qc3 {[%clk 0:00:49.8]} 32... Qxc3 {[%clk
0:00:10.9]} 33. bxc3 {[%clk 0:00:50.7]} 33... Bxc3 {[%clk 0:00:10.4]} 34. Re3
{[%clk 0:00:44.3]} 34... b4 {[%clk 0:00:08.1]} 35. a3 {[%clk 0:00:44.9]} 35...
g5 {[%clk 0:00:05.8]} 36. axb4 {[%clk 0:00:43]} 36... Bxb4 {[%clk 0:00:06.7]}
37. Re4 {[%clk 0:00:43.4]} 37... Bd6 {[%clk 0:00:07.1]} 38. h3 {[%clk
0:00:40.5]} 38... a3 {[%clk 0:00:07.3]} 39. c4 {[%clk 0:00:40.8]} 39... Kg7
{[%clk 0:00:06.3]} 40. Re6 {[%clk 0:00:38.8]} 40... Bb4 {[%clk 0:00:01.8]} 41.
Rb6 {[%clk 0:00:35.7]} 41... Be7 {[%clk 0:00:01.9]} 42. Rb5 {[%clk 0:00:31.4]}
42... Kf6 {[%clk 0:00:02.8]} 43. Rd5 {[%clk 0:00:21.1]} 43... g4 {[%clk
0:00:03.6]} 44. Rxh5 {[%clk 0:00:11.1]} 44... g3 {[%clk 0:00:04]} 45. Rh4 {[%clk
0:00:11.7]} 45... Ke5 {[%clk 0:00:03.3]} 46. Rg4 {[%clk 0:00:11.5]} 46... Bc5
{[%clk 0:00:02.2]} 47. Rxg3 {[%clk 0:00:10.7]} 47... Kd4 {[%clk 0:00:03.1]} 48.
Rg4+ {[%clk 0:00:11.4]} 48... Kc3 {[%clk 0:00:03.4]} 49. Ka2 {[%clk 0:00:12.3]}
49... Kb4 {[%clk 0:00:03.5]} 50. h4 {[%clk 0:00:12.1]} 50... Be3 {[%clk
0:00:04]} 51. h5 {[%clk 0:00:13]} 51... Bd2 {[%clk 0:00:03.8]} 52. Rh4 {[%clk
0:00:11.8]} 52... Bh6 {[%clk 0:00:03.7]} 53. Rg4 {[%clk 0:00:10.2]} 53... Bd2
{[%clk 0:00:03.7]} 54. Rg6 {[%clk 0:00:07.7]} 54... Kxc4 {[%clk 0:00:03.7]} 55.
h6 {[%clk 0:00:08.3]} 55... Kb4 {[%clk 0:00:03.1]} 56. h7 {[%clk 0:00:08.4]}
56... Bc3 {[%clk 0:00:04]} 57. Rg8 {[%clk 0:00:08.7]} 57... Kb5 {[%clk
0:00:04.1]} 58. h8=Q {[%clk 0:00:08.9]} 58... Bxh8 {[%clk 0:00:04.8]} 59. Rxh8
{[%clk 0:00:09.8]} 1-0

[Event "Late-Titled-Tuesday-Blitz-September-12-2023"]
[Site "Chess.com"]
[Date "2023.09.12"]
[Round "4"]
[White "santosalberto1987"]
[Black "Abund"]
[Result "0-1"]
[WhiteElo "2530"]
[BlackElo "2745"]
[TimeControl "180+1"]
[EndTime "14:38:05 PDT"]
[Termination "Abund won by resignation"]

1. e4 {[%clk 0:02:55.6]} 1... e5 {[%clk 0:03:00.2]} 2. Nf3 {[%clk 0:02:55.5]}
2... Nc6 {[%clk 0:03:00.9]} 3. Bc4 {[%clk 0:02:52.7]} 3... Bc5 {[%clk
0:03:01.1]} 4. O-O {[%clk 0:02:51.7]} 4... Nf6 {[%clk 0:03:01.8]} 5. Re1 {[%clk
0:02:51.1]} 5... O-O {[%clk 0:02:56]} 6. d3 {[%clk 0:02:48.1]} 6... Ng4 {[%clk
0:02:53.6]} 7. Re2 {[%clk 0:02:46.3]} 7... Kh8 {[%clk 0:02:51.9]} 8. Nc3 {[%clk
0:02:40.7]} 8... f5 {[%clk 0:02:41.3]} 9. exf5 {[%clk 0:02:39.7]} 9... Rxf5
{[%clk 0:02:36.3]} 10. h3 {[%clk 0:02:35.5]} 10... Nh6 {[%clk 0:02:17.8]} 11.
Re1 {[%clk 0:02:29.2]} 11... a6 {[%clk 0:02:09.3]} 12. Be3 {[%clk 0:02:18.8]}
12... Bxe3 {[%clk 0:02:05.3]} 13. fxe3 {[%clk 0:02:16.6]} 13... d6 {[%clk
0:02:05.4]} 14. Rf1 {[%clk 0:02:13.2]} 14... Bd7 {[%clk 0:02:00.4]} 15. Qe2
{[%clk 0:02:07.2]} 15... Rf8 {[%clk 0:01:49.4]} 16. a3 {[%clk 0:02:02.7]} 16...
Nf5 {[%clk 0:01:47.2]} 17. Nd5 {[%clk 0:01:56.5]} 17... Ng3 {[%clk 0:01:45.8]}
18. Qd2 {[%clk 0:01:55.6]} 18... Nxf1 {[%clk 0:01:45.8]} 19. Rxf1 {[%clk
0:01:56.5]} 19... h6 {[%clk 0:01:11.7]} 20. c3 {[%clk 0:01:51.5]} 20... Ne7
{[%clk 0:00:58.3]} 21. e4 {[%clk 0:01:46.7]} 21... Nxd5 {[%clk 0:00:54.2]} 22.
Bxd5 {[%clk 0:01:47.6]} 22... c6 {[%clk 0:00:54.2]} 23. Bb3 {[%clk 0:01:45.5]}
23... Qe7 {[%clk 0:00:51.4]} 24. Kh2 {[%clk 0:01:38.6]} 24... Be6 {[%clk
0:00:50.4]} 25. Bxe6 {[%clk 0:01:29.3]} 25... Qxe6 {[%clk 0:00:50.6]} 26. Qe3
{[%clk 0:01:28.4]} 26... Rf6 {[%clk 0:00:47.6]} 27. Re1 {[%clk 0:01:25.7]} 27...
Raf8 {[%clk 0:00:47]} 28. Re2 {[%clk 0:01:25.5]} 28... Rf4 {[%clk 0:00:37.9]}
29. Re1 {[%clk 0:01:25.4]} 29... Qg6 {[%clk 0:00:36.8]} 30. Re2 {[%clk
0:01:23.1]} 30... Qh5 {[%clk 0:00:37.2]} 31. Rf2 {[%clk 0:01:14.6]} 31... d5
{[%clk 0:00:36.6]} 32. Kg1 {[%clk 0:00:45.6]} 32... dxe4 {[%clk 0:00:30]} 33.
dxe4 {[%clk 0:00:46.5]} 33... Rd8 {[%clk 0:00:29.2]} 34. Qb6 {[%clk 0:00:30.5]}
34... Rd1+ {[%clk 0:00:20.7]} 35. Kh2 {[%clk 0:00:30.8]} 35... Kh7 {[%clk
0:00:17.6]} 36. Qxb7 {[%clk 0:00:29.6]} 36... Rxe4 {[%clk 0:00:16.5]} 37. Qxc6
{[%clk 0:00:27.8]} 37... Rf4 {[%clk 0:00:12]} 38. Re2 {[%clk 0:00:26]} 38... e4
{[%clk 0:00:05.2]} 39. Rxe4 {[%clk 0:00:24.1]} 39... Rxe4 {[%clk 0:00:06.1]} 40.
Qxe4+ {[%clk 0:00:24.5]} 40... Qg6 {[%clk 0:00:06.9]} 41. Qe2 {[%clk 0:00:23.6]}
41... Qd6+ {[%clk 0:00:06.8]} 42. g3 {[%clk 0:00:16.1]} 42... Kh8 {[%clk
0:00:06.6]} 43. Kg2 {[%clk 0:00:16]} 43... Qd3 {[%clk 0:00:06.3]} 44. Qe8+
{[%clk 0:00:15.5]} 44... Kh7 {[%clk 0:00:06]} 45. g4 {[%clk 0:00:11]} 45... Qf1+
{[%clk 0:00:03.5]} 46. Kg3 {[%clk 0:00:11.4]} 46... Qd3 {[%clk 0:00:03.9]} 47.
Qe5 {[%clk 0:00:10.6]} 47... Rf1 {[%clk 0:00:03.8]} 48. Qf5+ {[%clk 0:00:09.4]}
48... Qxf5 {[%clk 0:00:03.9]} 49. gxf5 {[%clk 0:00:10.3]} 49... Rb1 {[%clk
0:00:04.6]} 50. b4 {[%clk 0:00:10.5]} 50... Rb3 {[%clk 0:00:05]} 51. Kf4 {[%clk
0:00:10.3]} 51... Rxc3 {[%clk 0:00:04.9]} 52. a4 {[%clk 0:00:10.4]} 52... Rc4+
{[%clk 0:00:05.5]} 53. Ke5 {[%clk 0:00:10.2]} 53... Rxb4 {[%clk 0:00:06.2]} 54.
a5 {[%clk 0:00:09.9]} 54... Rb5+ {[%clk 0:00:06.4]} 55. Ke6 {[%clk 0:00:10.8]}
55... Rxa5 {[%clk 0:00:06.9]} 56. f6 {[%clk 0:00:11.2]} 56... gxf6 {[%clk
0:00:06.9]} 57. Kxf6 {[%clk 0:00:12.1]} 57... Ra3 {[%clk 0:00:07.6]} 58. Nd4
{[%clk 0:00:11.1]} 58... Rxh3 {[%clk 0:00:07.3]} 0-1

[Event "Late-Titled-Tuesday-Blitz-September-12-2023"]
[Site "Chess.com"]
[Date "2023.09.12"]
[Round "4"]
[White "Levanzovsky"]
[Black "laiciffOneslraCsungaM"]
[Result "1-0"]
[WhiteElo "2480"]
[BlackElo "2331"]
[TimeControl "180+1"]
[EndTime "14:38:08 PDT"]
[Termination "Levanzovsky won by resignation"]

1. e4 {[%clk 0:02:59.3]} 1... e6 {[%clk 0:02:59.8]} 2. d4 {[%clk 0:02:59]} 2...
d5 {[%clk 0:03:00.4]} 3. Nc3 {[%clk 0:02:59.4]} 3... Nf6 {[%clk 0:03:00.7]} 4.
e5 {[%clk 0:02:59.4]} 4... Nfd7 {[%clk 0:03:00.9]} 5. f4 {[%clk 0:02:59.9]} 5...
c5 {[%clk 0:03:01.4]} 6. Nf3 {[%clk 0:03:00.5]} 6... Nc6 {[%clk 0:03:02]} 7. Be3
{[%clk 0:03:01]} 7... cxd4 {[%clk 0:02:47.5]} 8. Nxd4 {[%clk 0:03:00.2]} 8...
Qb6 {[%clk 0:02:47.1]} 9. Qd2 {[%clk 0:02:58.2]} 9... Qxb2 {[%clk 0:02:46.9]}
10. Rb1 {[%clk 0:02:57.2]} 10... Qa3 {[%clk 0:02:46]} 11. Bb5 {[%clk 0:02:57.4]}
11... Nxd4 {[%clk 0:02:44.3]} 12. Bxd4 {[%clk 0:02:57.6]} 12... a6 {[%clk
0:02:43.4]} 13. Bxd7+ {[%clk 0:02:57.4]} 13... Bxd7 {[%clk 0:02:42.1]} 14. Rb3
{[%clk 0:02:57.6]} 14... Qe7 {[%clk 0:02:40.6]} 15. Rxb7 {[%clk 0:02:57.2]}
15... Rc8 {[%clk 0:02:39.8]} 16. Qe3 {[%clk 0:02:53]} 16... Qd8 {[%clk
0:02:33.4]} 17. Bb6 {[%clk 0:02:45.2]} 17... Qh4+ {[%clk 0:01:41.6]} 18. g3
{[%clk 0:02:44.2]} 18... Qh3 {[%clk 0:01:26.2]} 19. Kf2 {[%clk 0:02:00.1]} 19...
h5 {[%clk 0:01:15.6]} 20. Ne2 {[%clk 0:01:17.8]} 20... h4 {[%clk 0:00:43.5]} 21.
Nd4 {[%clk 0:01:16.3]} 21... hxg3+ {[%clk 0:00:42.7]} 22. Qxg3 {[%clk
0:01:17.2]} 22... Qxg3+ {[%clk 0:00:33.5]} 23. Kxg3 {[%clk 0:01:18.1]} 23... Bc5
{[%clk 0:00:24.7]} 24. Bxc5 {[%clk 0:01:14.7]} 24... Rxc5 {[%clk 0:00:25.6]} 25.
Rhb1 {[%clk 0:01:07.5]} 25... Rc3+ {[%clk 0:00:22.2]} 26. Kg2 {[%clk 0:01:06.8]}
26... Rc4 {[%clk 0:00:20.5]} 27. Ra7 {[%clk 0:00:57.8]} 27... O-O {[%clk
0:00:12.8]} 28. c3 {[%clk 0:00:49.1]} 28... Ba4 {[%clk 0:00:08.7]} 29. Rbb7
{[%clk 0:00:40.1]} 29... Rxc3 {[%clk 0:00:07.6]} 30. Nxe6 {[%clk 0:00:39.1]}
30... Bc6 {[%clk 0:00:05]} 31. Rc7 {[%clk 0:00:20.2]} 31... d4+ {[%clk
0:00:05.9]} 32. Kf2 {[%clk 0:00:11.4]} 32... Rf3+ {[%clk 0:00:04.5]} 33. Ke2
{[%clk 0:00:10.7]} 33... d3+ {[%clk 0:00:03.5]} 34. Kd2 {[%clk 0:00:10.3]} 34...
Rf2+ {[%clk 0:00:03.7]} 35. Kxd3 {[%clk 0:00:08.9]} 35... Bb5+ {[%clk
0:00:03.3]} 36. Ke3 {[%clk 0:00:07.9]} 36... Rg2 {[%clk 0:00:02.8]} 37. Nxf8
{[%clk 0:00:05.8]} 37... Kxf8 {[%clk 0:00:03.7]} 38. Rc8+ {[%clk 0:00:04.5]}
38... Be8 {[%clk 0:00:02.4]} 39. Raa8 {[%clk 0:00:05.2]} 39... Ke7 {[%clk
0:00:01.3]} 40. Rxe8+ {[%clk 0:00:04.8]} 40... Kd7 {[%clk 0:00:02.2]} 41. Rad8+
{[%clk 0:00:05.3]} 41... Kc6 {[%clk 0:00:03.1]} 42. Kf3 {[%clk 0:00:06.1]} 42...
Rxa2 {[%clk 0:00:02.8]} 43. Rd6+ {[%clk 0:00:06.8]} 43... Kb5 {[%clk 0:00:02.8]}
44. Rb8+ {[%clk 0:00:07.1]} 44... Ka5 {[%clk 0:00:02.6]} 45. Rd5+ {[%clk
0:00:07]} 45... Ka4 {[%clk 0:00:02.4]} 46. Rd4+ {[%clk 0:00:07.5]} 46... Ka5
{[%clk 0:00:02.4]} 47. Rb3 {[%clk 0:00:07.7]} 47... Rxh2 {[%clk 0:00:02.7]} 48.
Ke4 {[%clk 0:00:04.9]} 48... Rh4 {[%clk 0:00:02.3]} 49. Kd5 {[%clk 0:00:04.8]}
49... g5 {[%clk 0:00:02.4]} 50. f5 {[%clk 0:00:03.6]} 50... g4 {[%clk
0:00:02.4]} 51. e6 {[%clk 0:00:03.4]} 51... Rh3 {[%clk 0:00:03]} 52. Rxh3 {[%clk
0:00:02.7]} 52... gxh3 {[%clk 0:00:03.9]} 53. Rh4 {[%clk 0:00:03.6]} 53... fxe6+
{[%clk 0:00:03.8]} 54. fxe6 {[%clk 0:00:03.9]} 1-0